bitfinex/quotes_SOLUSD_20250506
["timestamp","ask_amount","ask_price","bid_price","bid_amount"]
[1746552393079,20.36027608,143.95,143.91,41.20906351]
[1746552393275,1.5195,143.97,143.93,20.36027608]
[1746552393480,20.36027608,143.98,143.94,20.36027608]
[1746552394695,20.36027608,143.98,143.95,6.94685654]
[1746552395108,110.3195,144.01,143.95,27.30713262]
[1746552395397,20.36027608,143.99,143.96,13.9]
[1746552395691,20.36027608,144.0,143.96,34.26027608]
[1746552396598,20.36027608,143.99,143.96,13.9]
[1746552396799,20.36027608,143.97,143.9,31.27198162]
[1746552397094,82.8,143.98,143.92,34.26027608]
[1746552397316,20.36027608,143.97,143.93,20.36027608]
[1746552397794,82.8,143.98,143.92,34.26027608]
[1746552397795,20.36027608,143.96,143.92,34.26027608]
[1746552397981,20.36027608,143.95,143.91,27.30906351]
[1746552398186,20.36027608,143.95,143.92,13.9]
[1746552398385,20.36027608,143.95,143.91,6.94878743]
[1746552398584,20.36027608,143.95,143.91,20.84878743]
[1746552398777,20.36027608,143.95,143.91,41.20906351]
[1746552400205,20.36027608,143.94,143.91,13.9]
[1746552400503,20.36027608,143.94,143.91,6.9487157]
[1746552400694,20.36027608,143.95,143.91,27.30899178]
[1746552401078,0.13173246,143.92,143.91,6.9487157]
[1746552403700,0.13173246,143.92,143.91,27.30899178]
[1746552410604,0.13173246,143.92,143.91,45.95864064]
[1746552410911,0.13173246,143.92,143.91,98.60411672]
[1746552413311,0.13173246,143.92,143.91,78.24384064]
[1746552414118,0.13173246,143.92,143.91,98.60411672]
[1746552414915,0.13173246,143.92,143.91,78.24384064]
[1746552418322,0.13173246,143.92,143.91,72.60411672]
[1746552418496,0.13173246,143.92,143.91,74.13741672]
[1746552418690,0.14818229,143.93,143.92,18.64964886]
[1746552418917,0.13256374,143.94,143.92,68.55591164]
[1746552419213,0.13387841,143.95,143.94,18.64964886]
[1746552419510,0.13387841,143.95,143.94,39.00992494]
[1746552420612,20.36027608,144.02,143.98,26.0]
[1746552420915,0.14663846,144.0,143.99,13.9]
[1746552421793,0.14663846,144.0,143.99,41.20520281]
[1746552426900,0.05885106,144.03,143.99,58.56751963]
[1746552427102,0.05885106,144.03,144.0,20.36027608]
[1746552427817,0.05885106,144.03,144.02,26.0]
[1746552428608,0.05885106,144.03,144.02,32.94348007]
[1746552428801,20.41912714,144.03,144.02,6.94348007]
[1746552429128,0.05885106,144.03,144.02,6.94348007]
[1746552431321,0.05885106,144.03,144.01,6.94396222]
[1746552431913,20.41912714,144.03,144.01,6.94396222]
[1746552432108,0.05885106,144.03,144.01,6.94396222]
[1746552432310,20.41912714,144.03,144.01,6.94396222]
[1746552432743,0.05885106,144.03,144.02,13.88]
[1746552434137,0.05885106,144.03,144.02,20.82348007]
[1746552434310,0.05885106,144.03,144.02,46.82348007]
[1746552434913,0.05885106,144.03,144.02,67.18375615]
[1746552440536,21.36365028,144.06,144.02,84.54245633]
[1746552440738,21.36365028,144.06,144.03,20.36027608]
[1746552440936,0.12544691,144.04,144.03,20.36027608]
[1746552442541,0.12544691,144.04,144.03,27.30327406]
[1746552443734,0.12544691,144.04,144.03,6.94299798]
[1746552443915,0.12544691,144.04,144.03,27.30327406]
[1746552447433,0.12544691,144.04,144.03,45.95292292]
[1746552450440,0.12544691,144.04,144.03,27.30327406]
[1746552451332,0.12544691,144.04,144.03,6.94299798]
[1746552451626,0.12544691,144.04,144.03,41.18327406]
[1746552452433,0.12544691,144.04,144.03,39.47264684]
[1746552452632,0.12544691,144.04,144.03,59.83292292]
[1746552452836,0.12544691,144.04,144.03,69.01863354]
[1746552453220,0.14543521,144.05,144.04,18.64964886]
[1746552453426,0.15134638,144.07,144.05,28.64964886]
[1746552453726,0.13681231,144.08,144.07,28.64964886]
[1746552453929,0.0142708,144.09,144.08,18.64964886]
[1746552454148,139.3012,144.21,144.1,54.64964886]
[1746552454345,20.36027608,144.2,144.11,18.64964886]
[1746552454552,20.36027608,144.2,144.11,66.30934472]
[1746552454726,20.36027608,144.19,144.11,45.94906864]
[1746552454920,1.6012,144.21,144.11,45.94906864]
[1746552455141,1.6012,144.21,144.11,71.85235152]
[1746552455336,20.36027608,144.2,144.11,71.85235152]
[1746552455549,21.96147608,144.21,144.11,71.85235152]
[1746552455731,21.96147608,144.21,144.17,20.36027608]
[1746552456045,1.6012,144.21,144.18,34.24027608]
[1746552456245,21.96147608,144.21,144.18,13.88]
[1746552456633,21.96147608,144.21,144.18,20.81563064]
[1746552456934,1.6012,144.21,144.18,20.81563064]
[1746552457128,1.6012,144.21,144.18,41.17590672]
[1746552457528,21.96147608,144.21,144.18,20.81563064]
[1746552458540,1.6012,144.21,144.18,41.17590672]
[1746552459459,20.36027608,144.23,144.19,20.36027608]
[1746552459825,1.5569,144.25,144.19,20.36027608]
[1746552460029,20.36027608,144.23,144.19,20.36027608]
[1746552460834,20.36027608,144.22,144.2,6.93481276]
[1746552461050,0.13945645,144.21,144.2,6.93481276]
[1746552461262,20.49973253,144.21,144.2,13.86]
[1746552462758,0.13945645,144.21,144.2,13.86]
[1746552463157,20.49973253,144.21,144.2,13.86]
[1746552463344,0.13945645,144.21,144.2,20.79481276]
[1746552464258,0.13945645,144.21,144.2,41.15508884]
[1746552466939,0.13945645,144.21,144.2,20.79481276]
[1746552467650,0.13945645,144.21,144.2,41.15508884]
[1746552470253,0.13945645,144.21,144.2,20.79481276]
[1746552470465,20.49973253,144.21,144.2,20.79481276]
[1746552470838,20.49973253,144.21,144.2,13.86]
[1746552475154,20.49973253,144.21,144.17,20.7962558]
[1746552475364,0.13945645,144.21,144.18,20.36027608]
[1746552475862,20.49973253,144.21,144.17,41.15653188]
[1746552476560,20.49973253,144.21,144.17,58.4971714]
[1746552479063,20.36027608,144.2,144.17,38.13689532]
[1746552479664,20.36027608,144.19,144.17,6.9362558]
[1746552479850,20.36027608,144.2,144.18,13.86]
[1746552480055,0.13945645,144.21,144.18,34.22027608]
[1746552480456,20.36027608,144.22,144.18,34.22027608]
[1746552480650,20.36027608,144.21,144.18,13.86]
[1746552480966,1.5569,144.25,144.2,20.36027608]
[1746552481267,20.36027608,144.24,144.21,6.93433187]
[1746552481446,20.36027608,144.23,144.21,6.93433187]
[1746552481646,20.36027608,144.24,144.21,6.93433187]
[1746552483866,20.36027608,144.23,144.21,6.93433187]
[1746552484165,20.36027608,144.22,144.19,6.9352937]
[1746552484468,20.36027608,144.21,144.18,20.7955626]
[1746552485468,20.36027608,144.2,144.18,20.7955626]
[1746552485781,20.36027608,144.2,144.19,13.88]
[1746552486471,20.36027608,144.2,144.19,20.8152937]
[1746552487274,20.36027608,144.2,144.19,13.88]
[1746552488172,20.36027608,144.2,144.19,20.8152937]
[1746552488369,20.36027608,144.2,144.17,6.93585054]
[1746552488551,20.36027608,144.18,144.17,13.86]
[1746552488756,6.93434357,144.21,144.17,13.86]
[1746552489062,20.36027608,144.18,144.17,13.86]
[1746552492270,20.36027608,144.18,144.15,34.67699442]
[1746552492661,20.36027608,144.18,144.15,20.81699442]
[1746552492972,20.36027608,144.18,144.16,13.86]
[1746552493168,20.36027608,144.17,144.15,34.67699442]
[1746552493560,20.36027608,144.17,144.15,20.79699442]
[1746552494273,20.36027608,144.17,144.15,6.93699442]
[1746552494571,20.36027608,144.16,144.09,1.5691]
[1746552494762,20.36027608,144.11,144.1,13.86]
[1746552495556,82.8,144.14,144.1,13.86]
[1746552495766,20.36027608,144.13,144.1,13.86]
[1746552495960,20.36027608,144.14,144.1,34.22027608]
[1746552496273,20.36027608,144.16,144.13,6.9381808]
[1746552497674,20.36027608,144.15,144.13,6.9381808]
[1746552497971,20.36027608,144.15,144.11,6.9391437]
[1746552498172,20.36027608,144.15,144.11,44.64727905]
[1746552498578,82.8,144.17,144.12,20.36027608]
[1746552498579,20.36027608,144.16,144.12,20.36027608]
[1746552498779,82.8,144.17,144.12,20.36027608]
[1746552498982,20.36027608,144.16,144.12,20.36027608]
[1746552501082,20.36027608,144.15,144.11,44.64727905]
[1746552503087,20.36027608,144.14,144.11,6.9391437]
[1746552503379,20.36027608,144.13,144.11,20.8391437]
[1746552503778,20.36027608,144.15,144.11,41.19941978]
[1746552503962,103.16027608,144.16,144.12,20.36027608]
[1746552504285,20.36027608,144.15,144.11,41.19941978]
[1746552504782,20.36027608,144.15,144.11,58.54727905]
[1746552504987,82.8,144.18,144.13,6.9381808]
[1746552505175,20.36027608,144.16,144.13,6.9381808]
[1746552505485,20.36027608,144.17,144.13,27.29845688]
[1746552506184,20.36027608,144.16,144.13,6.9381808]
[1746552509282,20.36027608,144.15,144.12,20.81850345]
[1746552510085,82.8,144.18,144.12,41.17877953]
[1746552510086,20.36027608,144.16,144.12,41.17877953]
[1746552510584,20.36027608,144.15,144.12,20.81850345]
[1746552512471,20.36027608,144.16,144.12,41.17877953]
[1746552512985,20.36027608,144.15,144.12,20.81850345]
[1746552513179,20.36027608,144.14,144.12,6.93850345]
[1746552513382,20.36027608,144.13,144.12,13.88]
[1746552515309,20.36027608,144.14,144.12,20.81866222]
[1746552517402,20.36027608,144.13,144.12,13.88]
[1746552518194,20.36027608,144.13,144.12,20.81866222]
[1746552518382,20.36027608,144.14,144.12,20.81866222]
[1746552519077,20.36027608,144.13,144.12,13.88]
[1746552519382,20.36027608,144.14,144.12,13.88]
[1746552520089,82.8,144.17,144.12,20.81866222]
[1746552520279,103.16027608,144.16,144.12,20.81866222]
[1746552521093,20.36027608,144.15,144.12,20.81866222]
[1746552524984,82.8,144.16,144.11,6.93891882]
[1746552524985,20.36027608,144.13,144.11,6.93891882]
[1746552525701,20.36027608,144.13,144.09,60.22027608]
[1746552525702,20.36027608,144.13,144.1,6.93962526]
[1746552527301,20.36027608,144.12,144.1,6.93962526]
[1746552528304,20.36027608,144.13,144.1,6.93962526]
[1746552530396,82.8,144.14,144.11,20.36027608]
[1746552530899,20.36027608,144.15,144.11,20.36027608]
[1746552531086,20.36027608,144.16,144.12,20.36027608]
[1746552531291,20.36027608,144.15,144.12,20.36027608]
[1746552531486,20.36027608,144.15,144.12,6.93866222]
[1746552535321,20.36027608,144.15,144.12,27.2989383]
[1746552535501,103.16027608,144.16,144.12,27.2989383]
[1746552536805,103.16027608,144.16,144.12,44.64559386]
[1746552539014,103.16027608,144.16,144.14,20.36027608]
[1746552539015,82.8,144.16,144.14,20.36027608]
[1746552539203,82.8,144.16,144.14,34.22027608]
[1746552540314,20.36027608,144.18,144.14,34.22027608]
[1746552540706,20.36027608,144.18,144.15,6.93721817]
[1746552542028,84.3741,144.19,144.15,6.93721817]
[1746552542199,20.36027608,144.18,144.15,6.93721817]
[1746552544415,20.36027608,144.18,144.15,24.2802636]
[1746552544609,20.36027608,144.18,144.15,44.64053968]
[1746552545517,20.36027608,144.2,144.16,20.36027608]
[1746552545720,103.16027608,144.21,144.17,20.36027608]
[1746552546723,103.16027608,144.21,144.15,24.2802636]
[1746552547224,103.16027608,144.21,144.18,6.93577472]
[1746552548114,20.36027608,144.22,144.18,44.63548761]
[1746552548932,20.36027608,144.21,144.18,24.27521153]
[1746552553136,20.36027608,144.19,144.18,6.93577472]
[1746552553326,20.36027608,144.19,144.14,20.2814]
[1746552553327,20.36027608,144.19,144.15,6.93721817]
[1746552553507,20.36027608,144.2,144.16,20.36027608]
[1746552553709,82.8,144.22,144.16,20.36027608]
[1746552553917,20.36027608,144.2,144.16,20.36027608]
[1746552554419,82.8,144.22,144.15,38.1402636]
[1746552554739,20.36027608,144.21,144.18,6.93577472]
[1746552555313,20.36027608,144.22,144.18,27.2960508]
[1746552555841,20.36027608,144.19,144.16,6.93673695]
[1746552556046,20.36027608,144.18,144.16,6.93673695]
[1746552557956,20.36027608,144.18,144.15,6.93708344]
[1746552558314,20.36027608,144.17,144.15,6.93708344]
[1746552558747,20.36027608,144.17,144.14,20.79753279]
[1746552558923,27.29523652,144.2,144.14,20.79753279]
[1746552559241,20.36027608,144.17,144.14,20.79753279]
[1746552560142,6.93454725,144.21,144.14,41.15780887]
[1746552560320,20.36027608,144.18,144.14,41.15780887]
[1746552560520,20.36027608,144.17,144.14,20.79753279]
[1746552561549,20.36027608,144.16,144.14,20.79753279]
[1746552564249,20.36027608,144.17,144.14,20.79753279]
[1746552564654,6.93504074,144.2,144.14,41.15780887]
[1746552564828,20.36027608,144.18,144.14,41.15780887]
[1746552565224,20.36027608,144.19,144.16,6.93673695]
[1746552565651,20.36027608,144.2,144.16,6.93673695]
[1746552566750,20.36027608,144.19,144.16,6.93673695]
[1746552567456,34.43867004,144.23,144.16,27.29701303]
[1746552567654,20.36027608,144.2,144.16,27.29701303]
[1746552568765,27.5051,144.23,144.17,20.36027608]
[1746552568935,20.36027608,144.21,144.17,20.36027608]
[1746552569649,20.36027608,144.21,144.18,6.93577472]
[1746552570035,27.5051,144.23,144.18,6.93577472]
[1746552570236,20.36027608,144.21,144.18,6.93577472]
[1746552570437,20.36027608,144.22,144.18,27.2960508]
[1746552570845,20.36027608,144.22,144.19,13.86]
[1746552571541,20.36027608,144.22,144.2,6.93481276]
[1746552574964,20.36027608,144.22,144.19,13.86]
[1746552575335,20.36027608,144.21,144.19,13.86]
[1746552576356,20.36027608,144.2,144.14,17.34416724]
[1746552576554,20.36027608,144.2,144.15,34.22027608]
[1746552576864,20.36027608,144.19,144.15,41.15749425]
[1746552577249,20.36027608,144.2,144.16,20.36027608]
[1746552577651,31.19338863,144.24,144.15,20.79721817]
[1746552577864,20.36027608,144.21,144.17,20.36027608]
[1746552579338,20.36027608,144.21,144.17,6.9362558]
[1746552581041,20.36027608,144.2,144.17,6.9362558]
[1746552581241,20.36027608,144.2,144.16,6.93665397]
[1746552581535,20.36027608,144.2,144.16,27.29693005]
[1746552582261,20.36027608,144.2,144.16,6.93665397]
[1746552582474,20.36027608,144.19,144.15,6.93706136]
[1746552582660,20.36027608,144.16,144.14,13.86]
[1746552582847,20.36027608,144.15,144.12,6.93847247]
[1746552583051,20.36027608,144.14,144.11,6.93905069]
[1746552583243,20.36027608,144.14,144.11,20.79905069]
[1746552583442,20.36027608,144.13,144.11,6.93905069]
[1746552583651,20.36027608,144.12,144.1,13.86]
[1746552584442,20.36027608,144.12,144.09,6.94010687]
[1746552584644,20.36027608,144.12,144.09,20.80010687]
[1746552587970,20.36027608,144.14,144.1,20.36027608]
[1746552588275,26.0,144.17,144.11,20.36027608]
[1746552588457,20.36027608,144.16,144.12,20.36027608]
[1746552588658,20.36027608,144.15,144.12,6.93848013]
[1746552591064,22.42888687,144.19,144.12,27.29875621]
[1746552591268,20.36027608,144.16,144.12,27.29875621]
[1746552591573,20.36027608,144.17,144.13,20.36027608]
[1746552591878,20.36027608,144.15,144.12,6.93848013]
[1746552592965,20.36027608,144.13,144.1,6.93962526]
[1746552594862,20.36027608,144.14,144.1,27.29990134]
[1746552597078,20.36027608,144.14,144.1,6.93962526]
[1746552598272,20.36027608,144.14,144.1,27.29990134]
[1746552598580,20.36027608,144.15,144.1,27.29990134]
[1746552599879,20.36027608,144.15,144.11,20.36027608]
[1746552600885,20.36027608,144.16,144.11,20.36027608]
[1746552601381,20.36027608,144.15,144.12,6.93866222]
[1746552601781,20.36027608,144.16,144.12,6.93866222]
[1746552601985,20.36027608,144.15,144.12,6.93866222]
[1746552602278,20.36027608,144.14,144.12,6.93866222]
[1746552602587,20.36027608,144.15,144.12,6.93866222]
[1746552603881,20.36027608,144.13,144.09,26.73257608]
[1746552604062,20.36027608,144.12,144.09,20.80010687]
[1746552604262,20.36027608,144.12,144.09,6.94010687]
[1746552604569,20.36027608,144.13,144.09,41.16038295]
[1746552605580,20.36027608,144.13,144.1,13.86]
[1746552605976,20.36027608,144.14,144.1,34.22027608]
[1746552606574,41.4934,144.19,144.12,20.36027608]
[1746552606761,20.36027608,144.15,144.11,20.36027608]
[1746552607174,20.36027608,144.15,144.12,6.93866222]
[1746552607384,20.36027608,144.18,144.13,20.36027608]
[1746552607580,20.36027608,144.19,144.15,20.36027608]
[1746552607883,20.36027608,144.19,144.15,34.22027608]
[1746552608259,20.36027608,144.19,144.15,13.86]
[1746552608488,20.36027608,144.18,144.15,13.86]
[1746552608990,20.36027608,144.19,144.15,34.22027608]
[1746552609284,20.36027608,144.19,144.16,6.93673695]
[1746552610283,20.36027608,144.18,144.16,6.93673695]
[1746552610677,20.36027608,144.17,144.15,13.86]
[1746552612498,20.36027608,144.17,144.15,20.79712394]
[1746552613096,20.36027608,144.19,144.15,41.15740002]
[1746552613998,20.36027608,144.18,144.15,20.79712394]
[1746552616209,20.36027608,144.19,144.15,20.79712394]
[1746552616492,20.36027608,144.19,144.15,41.15740002]
[1746552616909,41.3701,144.23,144.16,20.36027608]
[1746552617096,20.36027608,144.2,144.16,20.36027608]
[1746552618485,20.36027608,144.2,144.17,6.9362558]
[1746552619718,20.36027608,144.21,144.17,27.29653188]
[1746552620378,20.36027608,144.21,144.17,44.6371714]
[1746552621304,20.36027608,144.2,144.17,6.9362558]
[1746552621886,20.36027608,144.19,144.17,6.9362558]
[1746552622807,20.36027608,144.19,144.16,6.93673695]
[1746552624006,20.36027608,144.18,144.15,6.93704014]
[1746552624190,20.36027608,144.16,144.15,20.77704014]
[1746552626204,20.36027608,144.16,144.14,6.93756305]
[1746552626403,20.36027608,144.15,144.12,13.84]
[1746552626896,20.36027608,144.13,144.12,6.93866222]
[1746552627088,20.36027608,144.13,144.09,31.19003394]
[1746552627089,20.36027608,144.13,144.09,27.68]
[1746552627297,20.36027608,144.1,144.07,13.84]
[1746552627688,20.36027608,144.1,144.07,20.78107031]
[1746552628897,20.36027608,144.1,144.07,6.94107031]
[1746552629092,20.36027608,144.09,144.07,6.94107031]
[1746552629497,20.36027608,144.1,144.07,6.94107031]
[1746552629813,20.36027608,144.09,144.07,6.94107031]
[1746552630319,20.36027608,144.08,144.06,6.94155213]
[1746552630499,20.36027608,144.07,144.06,6.94155213]
[1746552630810,20.36027608,144.08,144.06,6.94155213]
[1746552631012,1.5112,144.12,144.06,24.29543245]
[1746552631191,13.84,144.13,144.08,20.36027608]
[1746552631389,1.5725,144.16,144.08,20.36027608]
[1746552631390,1.5725,144.16,144.11,20.36027608]
[1746552631718,20.36027608,144.15,144.11,20.36027608]
[1746552632017,20.36027608,144.14,144.1,20.36027608]
[1746552632204,20.36027608,144.14,144.1,6.93962526]
[1746552632380,20.36027608,144.15,144.1,44.64896449]
[1746552632584,20.36027608,144.16,144.12,20.36027608]
[1746552632812,20.36027608,144.15,144.11,20.36027608]
[1746552633184,293.31321502,144.2,144.1,24.28868841]
[1746552633185,27.538,144.2,144.13,20.36027608]
[1746552633387,20.36027608,144.18,144.14,13.84]
[1746552633822,32.39657021,144.18,144.14,13.84]
[1746552634007,33.93457021,144.2,144.16,32.39657021]
[1746552634215,32.39657021,144.2,144.17,6.9362558]
[1746552635321,27.5583,144.24,144.17,39.33282601]
[1746552635622,32.39657021,144.2,144.17,6.9362558]
[1746552636194,27.5583,144.24,144.17,39.33282601]
[1746552636611,32.39657021,144.21,144.17,39.33282601]
[1746552636818,6.93349249,144.23,144.15,6.93721817]
[1746552636819,32.39657021,144.18,144.15,6.93721817]
[1746552637124,32.39657021,144.19,144.15,39.33378838]
[1746552637948,32.39657021,144.18,144.15,6.93721817]
[1746552638436,32.39657021,144.16,144.12,6.93846845]
[1746552638618,32.39657021,144.13,144.11,6.93896556]
[1746552640020,32.39657021,144.14,144.11,6.93896556]
[1746552641322,32.39657021,144.15,144.11,39.33553577]
[1746552641519,32.39657021,144.16,144.12,32.39657021]
[1746552641720,32.39657021,144.17,144.13,32.39657021]
[1746552641924,32.39657021,144.18,144.14,32.39657021]
[1746552642107,32.39657021,144.18,144.15,13.84]
[1746552642310,32.39657021,144.17,144.15,13.84]
[1746552643355,32.39657021,144.16,144.15,20.77696682]
[1746552643828,32.39657021,144.18,144.15,20.77696682]
[1746552644131,32.39657021,144.18,144.15,38.12001225]
[1746552644431,32.39657021,144.19,144.15,70.51658246]
[1746552644821,32.39657021,144.2,144.16,32.39657021]
[1746552645431,32.39657021,144.2,144.17,6.9362558]
[1746552646333,32.39657021,144.18,144.17,6.9362558]
[1746552646630,32.39657021,144.2,144.17,6.9362558]
[1746552647607,27.6635,144.23,144.17,39.33282601]
[1746552647841,32.39657021,144.21,144.17,39.33282601]
[1746552649811,32.39657021,144.2,144.17,39.33282601]
[1746552650012,32.39657021,144.21,144.17,39.33282601]
[1746552650213,1.6635,144.23,144.17,39.33282601]
[1746552650517,32.39657021,144.21,144.17,39.33282601]
[1746552651240,32.39657021,144.2,144.17,39.33282601]
[1746552651415,32.39657021,144.2,144.16,17.34163049]
[1746552651416,32.39657021,144.2,144.16,56.67493765]
[1746552652232,32.39657021,144.2,144.16,39.33330716]
[1746552653342,32.39657021,144.2,144.17,32.39657021]
[1746552653513,32.39657021,144.21,144.18,6.93577472]
[1746552653814,32.39657021,144.2,144.18,6.93577472]
[1746552654126,32.39657021,144.21,144.18,6.93577472]
[1746552655416,1.6635,144.23,144.18,6.93577472]
[1746552655417,32.39657021,144.2,144.18,6.93577472]
[1746552657319,32.39657021,144.2,144.17,6.9362558]
[1746552657519,32.39657021,144.21,144.17,56.67346553]
[1746552658812,8.59687403,144.23,144.17,6.9362558]
[1746552659013,32.39657021,144.2,144.17,6.9362558]
[1746552659743,32.39657021,144.18,144.15,6.93721817]
[1746552660049,32.39657021,144.16,144.15,6.93721817]
[1746552660343,32.39657021,144.16,144.14,6.93746372]
[1746552660935,32.39657021,144.17,144.14,6.93746372]
[1746552661137,26.0,144.22,144.16,32.39657021]
[1746552661332,32.39657021,144.2,144.16,32.39657021]
[1746552661531,32.39657021,144.19,144.15,32.39657021]
[1746552661732,32.39657021,144.2,144.16,39.33330716]
[1746552662044,32.39657021,144.2,144.17,32.39657021]
[1746552662245,32.39657021,144.2,144.18,13.84]
[1746552663129,13.84,144.24,144.18,13.84]
[1746552663325,32.39657021,144.21,144.18,13.84]
[1746552663743,32.39657021,144.21,144.19,6.9352937]
[1746552663943,32.39657021,144.2,144.18,13.84]
[1746552664147,32.39657021,144.21,144.18,20.77554678]
[1746552664753,89.7324611,144.25,144.18,20.77554678]
[1746552664754,32.39657021,144.2,144.18,20.77554678]
[1746552667133,32.39657021,144.19,144.18,13.84]
[1746552667569,32.39657021,144.19,144.13,46.23657021]
[1746552667733,32.39657021,144.16,144.15,13.84]
[1746552668049,32.39657021,144.16,144.14,20.77769945]
[1746552668461,32.39657021,144.16,144.14,6.93769945]
[1746552668748,32.39657021,144.15,144.14,20.77769945]
[1746552668956,32.39657021,144.15,144.12,13.84]
[1746552669129,32.39657021,144.13,144.12,13.84]
[1746552669331,32.39657021,144.13,144.11,20.77874502]
[1746552669941,89.73592003,144.18,144.11,20.77874502]
[1746552670142,32.39657021,144.15,144.11,70.5231745]
[1746552670340,82.8,144.17,144.13,32.39657021]
[1746552670555,84.435,144.21,144.14,32.39657021]
[1746552670859,32.39657021,144.18,144.14,32.39657021]
[1746552671656,32.39657021,144.18,144.15,6.93721817]
[1746552672045,32.39657021,144.18,144.15,24.2802636]
[1746552672246,32.39657021,144.19,144.15,56.67683381]
[1746552672449,32.39657021,144.19,144.16,13.84]
[1746552672756,84.3245,144.25,144.17,32.39657021]
[1746552672936,32.39657021,144.21,144.17,32.39657021]
[1746552673133,32.39657021,144.19,144.16,13.84]
[1746552674262,32.39657021,144.19,144.17,6.9362558]
[1746552675865,32.39657021,144.2,144.17,6.9362558]
[1746552676158,32.39657021,144.18,144.17,6.9362558]
[1746552676341,32.39657021,144.18,144.16,20.77651616]
[1746552676658,32.39657021,144.17,144.16,20.77651616]
[1746552677748,115.19657021,144.21,144.17,32.39657021]
[1746552677948,32.39657021,144.21,144.17,32.39657021]
[1746552678254,32.39657021,144.19,144.16,38.11835855]
[1746552678665,32.39657021,144.18,144.16,20.77651616]
[1746552679459,82.8,144.23,144.17,32.39657021]
[1746552679950,32.39657021,144.21,144.17,32.39657021]
[1746552680639,82.8,144.23,144.17,32.39657021]
[1746552680842,32.39657021,144.22,144.17,32.39657021]
[1746552681066,32.39657021,144.21,144.17,32.39657021]
[1746552682093,32.39657021,144.21,144.18,6.93577472]
[1746552682678,32.39657021,144.21,144.18,24.27521153]
[1746552683182,1.5245,144.25,144.19,32.39657021]
[1746552683488,32.39657021,144.23,144.19,32.39657021]
[1746552683772,32.39657021,144.22,144.18,82.67178174]
[1746552683976,32.39657021,144.21,144.18,50.27521153]
[1746552684163,32.39657021,144.22,144.18,50.27521153]
[1746552684357,32.39657021,144.22,144.18,82.67178174]
[1746552684682,115.19657021,144.27,144.19,32.39657021]
[1746552684974,32.39657021,144.23,144.19,32.39657021]
[1746552686656,32.39657021,144.23,144.2,6.93481276]
[1746552686855,32.39657021,144.23,144.21,13.88]
[1746552687984,32.39657021,144.22,144.21,13.88]
[1746552688481,32.39657021,144.22,144.21,20.81433187]
[1746552691366,32.39657021,144.23,144.21,20.81433187]
[1746552691567,32.39657021,144.24,144.21,20.81433187]
[1746552691765,115.19657021,144.27,144.21,20.81433187]
[1746552692275,32.39657021,144.24,144.21,20.81433187]
[1746552692680,32.39657021,144.25,144.21,70.54673177]
[1746552693955,32.39657021,144.24,144.21,70.54673177]
[1746552694156,32.39657021,144.24,144.21,38.15016156]
[1746552694474,32.39657021,144.23,144.21,20.81433187]
[1746552694681,32.39657021,144.23,144.19,32.39657021]
[1746552694682,32.39657021,144.22,144.19,6.9352937]
[1746552694972,6.93211383,144.26,144.2,13.88]
[1746552695156,32.39657021,144.22,144.2,13.88]
[1746552696176,32.39657021,144.22,144.21,6.93433187]
[1746552697258,32.39657021,144.22,144.18,13.86]
[1746552697456,32.39657021,144.19,144.15,6.93721817]
[1746552697660,32.39657021,144.16,144.15,20.79721817]
[1746552698467,32.39657021,144.16,144.15,6.93721817]
[1746552700263,32.39657021,144.17,144.15,6.93721817]
[1746552701059,32.39657021,144.16,144.15,6.93721817]
[1746552702264,32.39657021,144.16,144.13,20.7981808]
[1746552702470,32.39657021,144.15,144.13,20.7981808]
[1746552702681,32.39657021,144.14,144.11,6.9391437]
[1746552702982,32.39657021,144.14,144.11,20.8191437]
[1746552703861,32.39657021,144.14,144.11,38.16700297]
[1746552704063,82.8,144.18,144.11,70.56357318]
[1746552704385,115.19657021,144.18,144.14,32.39657021]
[1746552704580,32.39657021,144.19,144.14,32.39657021]
[1746552704784,108.8,144.21,144.15,32.39657021]
[1746552704987,32.39657021,144.19,144.16,13.88]
[1746552706173,32.39657021,144.18,144.17,6.9362558]
[1746552706501,32.39657021,144.19,144.17,6.9362558]
[1746552706665,32.39657021,144.21,144.17,39.33282601]
[1746552707290,32.39657021,144.2,144.17,6.9362558]
[1746552711388,32.39657021,144.19,144.17,6.9362558]
[1746552711695,32.39657021,144.2,144.17,6.9362558]
[1746552712081,32.39657021,144.19,144.17,6.9362558]
[1746552712280,26.0,144.23,144.16,20.81651638]
[1746552712281,32.39657021,144.18,144.16,20.81651638]
[1746552712481,32.39657021,144.17,144.14,20.81769945]
[1746552712674,32.39657021,144.15,144.14,20.81769945]
[1746552713390,32.39657021,144.15,144.12,20.81844458]
[1746552713578,32.39657021,144.14,144.12,20.81844458]
[1746552713778,32.39657021,144.13,144.12,20.81844458]
[1746552714286,32.39657021,144.13,144.11,6.9391437]
[1746552714890,46.79533365,144.19,144.11,6.9391437]
[1746552715108,32.39657021,144.14,144.11,24.28700297]
[1746552716097,32.39657021,144.15,144.11,56.68357318]